bitfinex/quotes_ETHUSD_20250813
["timestamp","ask_amount","ask_price","bid_price","bid_amount"]
[1755100703441,0.002,4654.0,4653.9,2.1994]
[1755100703867,0.002,4654.0,4653.9,3.418]
[1755100704366,0.0012,4654.0,4653.9,3.3108]
[1755100704567,0.1084,4654.0,4653.9,3.3108]
[1755100704943,0.1084,4654.0,4653.9,0.0008]
[1755100705260,0.1084,4654.0,4653.9,3.3108]
[1755100705844,0.0012,4654.0,4653.9,5.4022]
[1755100706050,0.0012,4654.0,4653.9,5.5094]
[1755100706773,0.0012,4654.0,4653.9,6.06034]
[1755100708834,0.0012,4654.0,4653.9,6.61034]
[1755100709938,0.0012,4654.0,4653.9,6.06034]
[1755100711539,0.0012,4654.0,4653.9,6.04514]
[1755100711949,0.0012,4654.0,4653.9,3.96894]
[1755100712174,0.0012,4654.0,4653.9,5.96844]
[1755100712468,0.0012,4654.0,4653.9,5.41428632]
[1755100712989,0.0012,4654.0,4653.9,4.97458632]
[1755100713576,0.0012,4654.0,4653.9,5.41428632]
[1755100716669,0.0004,4654.0,4653.9,5.41428632]
[1755100716851,0.0004,4654.0,4653.9,5.95571495]
[1755100718057,0.002,4655.0,4654.0,0.55]
[1755100718379,0.002,4655.0,4654.2,0.55]
[1755100718688,0.002,4655.0,4654.9,0.1072]
[1755100718866,0.002,4655.0,4654.9,3.4162]
[1755100719180,0.002,4655.0,4654.9,5.4157]
[1755100720380,0.002,4655.0,4654.9,5.95727]
[1755100720803,0.002,4655.0,4654.9,6.50727]
[1755100723884,0.002,4655.0,4654.9,6.40007]
[1755100724094,0.002,4655.0,4654.9,6.50727]
[1755100726257,0.002,4655.0,4654.9,3.19827]
[1755100726459,0.002,4655.0,4654.9,5.9647]
[1755100727057,0.002,4655.0,4654.9,8.9647]
[1755100730190,0.002,4655.0,4654.9,8.9655]
[1755100731070,0.002,4655.0,4654.9,5.6575]
[1755100731386,0.002,4655.0,4654.9,8.9655]
[1755100731588,0.002,4655.0,4654.9,9.31205]
[1755100731797,0.002,4655.0,4654.9,5.87235]
[1755100732089,0.002,4655.0,4654.9,2.56435]
[1755100732390,0.002,4655.0,4654.9,5.9655]
[1755100733658,0.002,4655.0,4654.9,0.658]
[1755100733890,0.002,4655.0,4654.9,3.966]
[1755100734088,0.002,4655.0,4654.9,5.9655]
[1755100734961,0.002,4655.0,4654.9,0.658]
[1755100735181,0.002,4655.0,4654.9,3.966]
[1755100735791,0.002,4655.0,4654.9,4.3626]
[1755100736193,0.002,4655.0,4654.9,6.3621]
[1755100737794,0.002,4655.0,4654.9,4.3626]
[1755100737962,0.4342,4655.0,4654.9,3.416]
[1755100738169,0.4342,4655.0,4654.9,3.415]
[1755100739480,0.002,4655.0,4654.9,3.415]
[1755100739878,0.002,4655.0,4654.9,3.965]
[1755100740081,0.002,4655.0,4654.9,6.3985]
[1755100740284,0.0012,4655.0,4654.9,6.3985]
[1755100742611,0.0012,4655.0,4654.9,9.3985]
[1755100746374,0.0012,4655.0,4654.9,32.83091515]
[1755100747090,0.0012,4655.0,4654.9,9.3985]
[1755100748526,0.0012,4655.0,4654.9,3.5045]
[1755100748723,0.0012,4655.0,4654.9,6.415]
[1755100749077,0.0012,4655.0,4654.9,3.415]
[1755100749505,0.0012,4655.0,4654.9,3.965]
[1755100750486,0.0012,4655.0,4654.9,6.02348273]
[1755100750686,0.0012,4655.0,4654.9,11.15]
[1755100751020,0.0012,4655.0,4654.9,9.113]
[1755100751417,0.0012,4655.0,4654.9,11.15]
[1755100752318,0.0004,4655.0,4654.9,11.15]
[1755100752628,0.0004,4655.0,4654.9,14.15]
[1755100753410,0.01899447,4655.4,4655.0,3.55]
[1755100753608,0.01899447,4655.4,4655.3,0.6572]
[1755100753834,0.01899447,4655.4,4655.3,6.98568089]
[1755100753995,0.01899447,4655.4,4655.3,9.0012]
[1755100754686,0.002,4655.5,4655.4,3.55]
[1755100755006,0.002,4656.0,4655.5,3.55]
[1755100755212,0.002,4656.0,4655.9,23.98241515]
[1755100755399,0.002,4656.0,4655.9,27.39661515]
[1755100755605,0.002,4656.0,4655.9,31.64017083]
[1755100755900,0.002,4656.0,4655.9,34.64017083]
[1755100757227,0.002,4656.0,4655.9,36.16833569]
[1755100757737,0.02,4658.4,4656.0,3.55]
[1755100757884,0.02,4658.4,4656.2,5.0748276]
[1755100758091,0.02,4658.4,4656.3,8.36323048]
[1755100758325,0.4706,4658.2,4656.3,31.79564563]
[1755100758617,0.4706,4658.2,4656.3,33.83264563]
[1755100758832,0.4706,4658.2,4656.3,33.83344563]
[1755100759201,0.02,4658.4,4656.4,4.62378805]
[1755100759400,0.02,4658.4,4657.3,3.6572]
[1755100759603,0.02,4658.4,4657.3,12.13167166]
[1755100759804,0.02,4658.4,4657.3,12.1102]
[1755100760013,0.02,4658.4,4657.3,14.1472]
[1755100760190,0.02,4658.4,4657.3,16.35375568]
[1755100760600,0.02,4658.4,4657.3,21.69984768]
[1755100760931,0.02,4658.4,4657.3,22.88099788]
[1755100761132,0.02,4658.4,4658.3,26.98241515]
[1755100761333,0.02,4658.4,4658.3,32.60217083]
[1755100761623,0.02,4658.4,4658.3,34.63917083]
[1755100761994,0.02,4658.4,4658.3,32.60217083]
[1755100762610,0.02,4658.4,4658.3,34.18577083]
[1755100763426,0.02,4658.4,4658.3,34.63917083]
[1755100763997,0.02,4658.4,4658.3,34.63997083]
[1755100764197,0.0192,4658.4,4658.3,31.33397083]
[1755100764497,0.0192,4658.4,4658.3,9.17255568]
[1755100764697,0.0192,4658.4,4658.3,6.966]
[1755100765913,0.0192,4658.4,4658.3,9.003]
[1755100767128,0.0192,4658.4,4658.3,6.966]
[1755100768722,0.0192,4658.4,4658.3,9.003]
[1755100768919,0.0192,4658.4,4658.3,8.5496]
[1755100769122,0.0192,4658.4,4658.3,7.8633]
[1755100770097,0.0192,4658.4,4658.3,10.37224011]
[1755100770502,0.0192,4658.4,4658.3,9.8364]
[1755100772230,0.0192,4658.4,4658.3,7.8633]
[1755100772833,0.0192,4658.4,4658.3,4.5583]
[1755100773021,0.4835,4658.4,4658.3,3.413]
[1755100773407,0.4835,4658.4,4658.3,3.963]
[1755100774814,0.0192,4658.4,4658.3,3.963]
[1755100775907,0.0192,4658.4,4658.3,5.9361]
[1755100776215,0.0192,4658.4,4658.3,6.963]
[1755100776418,0.0192,4658.4,4658.3,7.6593]
[1755100776419,0.0184,4658.4,4658.3,7.6593]
[1755100776821,0.0184,4658.4,4658.3,7.6583]
[1755100777510,0.0184,4658.4,4658.3,9.6314]
[1755100778344,0.0184,4658.4,4658.3,7.6583]
[1755100779347,0.0184,4658.4,4658.3,8.1085]
[1755100779518,0.0184,4658.4,4658.3,9.6314]
[1755100779706,0.0204,4658.4,4658.3,9.6314]
[1755100780812,0.0204,4658.4,4658.3,7.6583]
[1755100781239,0.0204,4658.4,4658.3,4.3543]
[1755100781535,0.0204,4658.4,4658.3,7.6583]
[1755100781735,0.0204,4658.4,4658.3,0.108]
[1755100781736,1.7229,4658.4,4658.3,0.108]
[1755100781929,1.7229,4658.4,4658.3,3.412]
[1755100782407,1.7229,4658.4,4658.3,0.108]
[1755100782612,1.7229,4658.4,4658.3,8.556]
[1755100786644,0.4643,4658.4,4658.3,5.1448]
[1755100786821,0.4643,4658.4,4658.3,8.556]
[1755100787013,1.7025,4658.4,4658.3,8.556]
[1755100788651,1.22885442,4660.9,4658.3,8.4488]
[1755100788822,0.1072,4659.4,4658.4,0.87706659]
[1755100789142,0.1072,4659.4,4658.5,3.304]
[1755100789645,1.2382,4659.3,4658.5,3.304]
[1755100789843,1.2382,4659.3,4658.9,0.1072]
[1755100790025,0.1072,4659.6,4659.0,3.304]
[1755100790220,1.2382,4659.2,4659.0,3.304]
[1755100790423,1.2382,4660.1,4659.1,0.55]
[1755100790736,1.2382,4660.1,4659.6,0.1072]
[1755100790937,1.7025,4660.0,4659.7,3.304]
[1755100791118,1.2382,4660.0,4659.7,3.304]
[1755100791318,0.1072,4660.2,4659.6,0.1072]
[1755100791621,1.7025,4659.9,4659.7,3.304]
[1755100791823,0.46080632,4661.2,4659.8,3.304]
[1755100792146,0.7680481,4661.2,4659.9,3.304]
[1755100792344,0.643209,4661.0,4660.0,3.304]
[1755100792515,0.643209,4661.0,4660.1,3.304]
[1755100792516,4.7025,4660.9,4660.1,3.304]
[1755100792710,0.1072,4659.6,4659.0,0.1072]
[1755100793036,0.4643,4659.5,4659.1,3.304]
[1755100793554,1.2382,4659.4,4659.2,3.304]
[1755100793762,0.1072,4659.6,4659.2,3.304]
[1755100793971,1.7025,4659.3,4659.2,3.304]
[1755100794317,0.4643,4659.3,4659.2,3.304]
[1755100794519,0.1072,4659.6,4659.0,0.1072]
[1755100794853,3.0,4661.0,4659.0,0.1072]
[1755100794854,0.1072,4659.8,4659.2,3.304]
[1755100795017,0.1072,4660.0,4659.2,3.304]
[1755100795221,0.26530145,4660.0,4659.2,3.304]
[1755100795424,0.1072,4660.0,4659.2,0.0008]
[1755100795716,0.1072,4660.0,4659.3,3.4112]
[1755100795945,1.7025,4659.9,4659.3,0.1072]
[1755100796118,0.4643,4659.9,4659.4,3.304]
[1755100796317,0.1072,4660.0,4659.4,3.304]
[1755100796942,0.4643,4660.4,4659.4,3.304]
[1755100797142,0.4643,4660.4,4659.6,0.1072]
[1755100797143,0.1072,4660.3,4659.6,0.1072]
[1755100799128,0.1072,4660.3,4659.6,0.42957689]
[1755100799324,0.62512823,4660.6,4660.0,0.1072]
[1755100799620,0.62512823,4660.6,4660.1,8.448]
[1755100799826,0.4371,4660.5,4660.1,8.448]
[1755100800568,0.1072,4660.7,4660.1,8.448]
[1755100800775,0.1072,4660.7,4660.1,5.144]
[1755100801250,0.1072,4660.7,4660.2,0.55]
[1755100801773,0.4371,4660.6,4660.2,0.55]
[1755100801928,0.4391,4660.6,4660.4,0.1072]
[1755100802422,0.002,4660.6,4660.4,0.1072]
[1755100803156,0.002,4660.6,4660.5,3.7575]
[1755100803380,0.002,4660.6,4660.5,4.19897]
[1755100803582,0.002,4660.6,4660.5,4.22042692]
[1755100803784,0.002,4660.6,4660.5,4.19897]
[1755100803954,0.002,4660.6,4660.5,4.74997]
[1755100804291,0.002,4660.6,4660.5,6.32687]
[1755100804796,0.002,4660.6,4660.5,9.43407]
[1755100804955,0.02,4661.4,4660.6,3.55]
[1755100805285,0.02,4661.4,4660.8,3.55]
[1755100805500,0.02,4661.4,4661.3,0.6572]
[1755100805701,0.02,4661.4,4661.3,3.9642]
[1755100805882,0.02,4661.4,4661.3,5.9936]
[1755100806201,0.02,4661.4,4661.3,2.6866]
[1755100806381,0.02,4661.4,4661.3,4.23186]
[1755100807050,0.02,4661.4,4661.3,4.23286]
[1755100807281,0.02,4661.4,4661.3,0.37586]
[1755100807536,0.02,4661.4,4661.3,3.4142]
[1755100808809,0.4571,4661.4,4661.3,3.4142]
[1755100808997,0.4571,4661.4,4660.2,1.5769]
[1755100809202,0.4571,4661.4,4660.9,0.1072]
[1755100809404,0.4571,4661.4,4661.0,3.308]
[1755100809405,0.4371,4661.3,4661.0,3.308]
[1755100809600,1.2124,4661.4,4661.0,3.308]
[1755100809803,0.4371,4661.2,4661.0,3.308]
[1755100810403,1.2124,4661.4,4661.0,3.308]
[1755100810607,0.4371,4661.1,4660.9,0.1072]
[1755100810819,0.4371,4661.1,4661.0,8.449]
[1755100810989,1.6295,4661.1,4661.0,8.449]
[1755100811188,1.7367,4661.1,4661.0,8.449]
[1755100811515,1.7367,4661.1,4661.0,8.45]
[1755100812016,1.7367,4661.1,4661.0,5.143]
[1755100812187,1.7367,4661.1,4661.0,8.45]
[1755100812386,1.7367,4661.1,4661.0,5.143]
[1755100812611,1.7367,4661.1,4661.0,8.45]
[1755100812818,1.7367,4661.1,4661.0,3.307]
[1755100813019,1.7367,4661.1,4659.9,5.143]
[1755100813224,1.6295,4661.0,4660.0,3.308]
[1755100813519,1.6295,4661.0,4659.9,5.143]
[1755100813520,1.6295,4660.9,4660.1,3.308]
[1755100813685,1.6295,4660.8,4660.1,3.308]
[1755100813891,1.6295,4660.8,4659.9,5.143]
[1755100813892,0.1072,4660.2,4659.9,5.143]
[1755100814087,0.1072,4660.2,4660.0,3.308]
[1755100814287,0.5443,4660.2,4660.1,3.308]
[1755100814518,0.1072,4660.2,4660.1,3.308]
[1755100815409,0.5443,4660.2,4659.9,5.143]
[1755100815592,1.6295,4660.1,4659.9,5.143]
[1755100815793,1.1924,4660.1,4660.0,3.308]
[1755100815996,0.1072,4660.2,4660.0,3.309]
[1755100816214,0.1072,4660.2,4660.1,3.309]
[1755100816833,0.1072,4660.2,4659.9,5.143]
[1755100817040,1.4087,4660.1,4660.0,3.308]
[1755100817530,0.1072,4660.2,4660.0,3.308]
[1755100817948,0.64321,4661.0,4660.0,3.308]
[1755100817949,0.1072,4660.1,4660.0,3.308]
[1755100819035,0.1072,4660.1,4659.9,5.143]
[1755100819204,0.1072,4660.1,4660.0,3.309]
[1755100819611,0.002,4661.1,4660.0,4.8859]
[1755100819823,0.1072,4660.3,4660.0,5.3384]
[1755100820916,0.002,4661.1,4660.1,2.0294]
[1755100821136,0.1072,4660.5,4660.1,2.0294]
[1755100821335,0.1072,4660.7,4660.2,2.0294]
[1755100821544,0.1072,4660.7,4660.3,5.3374]
[1755100821906,0.1072,4660.7,4660.4,3.308]
[1755100822377,0.1072,4660.7,4660.5,3.308]
[1755100822675,0.1072,4660.7,4660.6,3.307]
[1755100822895,0.1072,4660.4,4659.9,5.143]
[1755100823070,0.1072,4660.1,4660.0,3.307]
[1755100823457,0.1072,4660.1,4660.0,3.308]
[1755100824059,0.1072,4660.1,4660.0,3.307]
[1755100824259,0.1072,4660.1,4659.9,5.143]
[1755100824483,0.1072,4660.1,4660.0,3.307]
[1755100825486,0.1072,4660.1,4660.0,3.306]
[1755100825688,0.1072,4660.4,4660.0,5.3354]
[1755100825854,0.1072,4660.4,4660.1,2.05085876]
[1755100826055,0.1072,4660.4,4660.1,1.5769]
[1755100826778,0.1072,4660.4,4660.1,2.0294]
[1755100827363,0.1072,4660.4,4659.9,5.143]
[1755100827567,0.1072,4660.4,4660.0,3.306]
[1755100828686,0.4371,4660.3,4660.1,3.305]
[1755100828887,1.7367,4660.2,4659.9,5.143]
[1755100829087,1.6295,4660.1,4658.9,5.144]
[1755100829289,0.4371,4660.0,4659.0,3.306]
[1755100829685,0.1072,4659.1,4659.0,3.306]
[1755100829889,0.1072,4659.1,4658.9,5.144]
[1755100830194,0.1072,4659.1,4659.0,3.307]
[1755100831269,0.1072,4659.1,4658.9,5.144]
[1755100831470,0.1072,4659.1,4659.0,3.307]
[1755100831966,0.1072,4659.1,4659.0,3.306]
[1755100832392,0.1072,4659.1,4659.0,5.1906]
[1755100832587,0.1072,4659.2,4659.0,5.1906]
[1755100832788,0.1072,4659.2,4659.0,1.8846]
[1755100832992,0.1072,4659.2,4659.1,3.305]
[1755100834177,0.4684,4660.7,4659.1,6.0345]
[1755100834378,0.1072,4659.6,4659.1,5.1896]
[1755100834578,0.1072,4659.6,4659.2,1.8846]
[1755100834774,0.1072,4659.6,4659.3,3.305]
[1755100834986,0.1072,4659.6,4659.3,5.1896]
[1755100835191,0.1072,4659.6,4659.4,1.8846]
[1755100835511,0.1072,4659.6,4659.5,3.305]
[1755100835870,0.1072,4659.6,4659.5,5.1896]
[1755100836901,0.1072,4659.6,4659.5,3.305]
[1755100837711,0.1072,4659.6,4659.5,5.1896]
[1755100839335,0.1072,4660.1,4659.5,5.70856]
[1755100839540,0.1072,4660.4,4659.6,1.90606106]
[1755100839697,0.1072,4660.4,4659.7,5.1896]
[1755100839904,0.1072,4660.4,4659.8,0.1072]
[1755100840100,0.1072,4660.4,4659.9,3.305]
[1755100840334,0.1072,4660.4,4660.0,1.8846]
[1755100840723,0.002,4660.7,4660.1,3.305]
[1755100840921,0.002,4660.7,4659.5,1.9918]
[1755100841251,0.1072,4660.1,4659.6,3.305]
[1755100841432,0.4664,4660.6,4659.7,3.305]
[1755100841606,0.1072,4659.8,4659.2,0.1072]
[1755100841799,0.1072,4659.8,4659.3,3.305]
[1755100842033,0.1072,4659.8,4659.2,0.1072]
[1755100842223,0.4664,4660.3,4658.9,5.144]
[1755100842430,0.4664,4660.2,4659.0,3.305]
[1755100842623,0.4664,4660.2,4658.9,5.144]
[1755100842624,1.1354,4660.1,4658.9,5.144]
[1755100842935,0.1072,4659.0,4658.9,5.144]
[1755100843106,0.1072,4659.0,4658.9,8.448]
[1755100843307,0.1072,4659.0,4658.9,5.144]
[1755100843514,0.1072,4659.0,4658.9,8.448]
[1755100845456,0.1072,4659.0,4658.9,5.144]
[1755100845639,0.1072,4659.0,4658.9,8.448]
[1755100849228,0.1072,4659.0,4658.9,5.144]
[1755100849859,0.5736,4659.0,4658.9,8.449]
[1755100850463,0.1072,4659.0,4658.9,8.449]
[1755100850765,0.1072,4659.0,4658.9,48.449]
[1755100852254,0.1072,4659.0,4658.9,50.3336]
[1755100853060,0.1072,4659.0,4658.9,48.449]
[1755100853563,0.1072,4659.0,4658.9,50.3336]
[1755100855972,0.1072,4659.0,4658.9,48.449]
[1755100857152,0.1072,4659.0,4658.9,50.3336]
[1755100857332,0.1072,4659.2,4658.9,52.54015568]
[1755100857531,0.1072,4659.2,4659.0,1.8846]
[1755100857753,0.1072,4659.2,4659.1,3.305]
[1755100858353,0.1072,4659.2,4659.1,5.1896]
[1755100860490,0.1072,4659.2,4658.9,45.144]
[1755100860672,0.1072,4659.2,4659.0,3.305]
[1755100861550,0.1072,4659.2,4658.9,45.144]
[1755100861752,0.1072,4659.2,4659.0,3.50215167]
[1755100861974,0.1072,4659.2,4659.0,3.305]
[1755100862582,0.1072,4659.2,4658.9,45.144]
[1755100862785,0.5735,4659.2,4658.9,45.144]
[1755100862987,0.5735,4659.2,4659.0,3.305]
[1755100863783,0.5735,4659.2,4659.1,3.305]
[1755100864689,0.1072,4659.2,4659.1,3.305]
[1755100865974,0.46171171,4660.0,4659.1,5.2023]
[1755100866282,0.1072,4659.7,4659.2,0.19690782]
[1755100866448,0.1072,4659.7,4659.1,5.2023]
[1755100866449,0.1072,4659.7,4659.3,3.50090782]
[1755100866652,0.1072,4659.7,4659.4,0.19692329]
[1755100866881,0.1072,4659.7,4659.5,3.305]
[1755100867084,0.1072,4659.7,4658.9,45.144]
[1755100867386,0.1072,4659.7,4659.0,3.50182218]
[1755100867590,0.1072,4659.7,4659.1,0.19682218]
[1755100867768,0.002,4660.6,4659.2,5.39912218]
[1755100867958,0.002,4660.6,4659.4,0.1072]
[1755100868293,0.002,4660.6,4659.5,3.50082218]
[1755100868481,0.002,4660.6,4660.0,0.1072]
[1755100868790,0.002,4660.6,4660.1,3.50082218]
[1755100868977,0.002,4660.6,4660.2,0.19669966]
[1755100869181,0.002,4660.6,4660.3,3.304]
[1755100870060,0.002,4660.6,4660.0,0.1072]
[1755100870385,0.002,4660.6,4660.1,3.50053105]
[1755100870692,0.002,4660.6,4660.2,0.19653105]
[1755100870893,0.002,4660.6,4660.3,3.50049621]
[1755100871123,0.002,4660.6,4660.3,3.304]
[1755100871411,0.002,4660.6,4660.4,2.09367419]
[1755100871607,0.002,4660.6,4660.5,0.19637419]
[1755100871900,0.002,4660.6,4660.5,5.39767419]
[1755100872102,0.002,4660.6,4660.5,5.94816161]
[1755100874730,0.002,4660.6,4660.5,2.64416161]
[1755100874921,0.002,4660.6,4660.5,5.39767419]
[1755100875396,0.002,4660.6,4660.5,2.09367419]
[1755100875596,0.002,4660.6,4660.5,3.50037419]
[1755100875810,0.002,4660.6,4660.5,3.304]
[1755100876014,0.002,4660.6,4660.5,0.19565664]
[1755100876211,0.002,4660.6,4660.5,3.49865664]
[1755100876413,0.002,4660.6,4660.5,3.49875076]
[1755100876991,0.002,4660.6,4660.5,0.19575076]
[1755100877438,0.002,4660.6,4660.5,3.303]
[1755100878495,0.002,4660.6,4659.9,0.1072]
[1755100878701,0.002,4660.6,4660.0,3.49892411]
[1755100878894,0.002,4660.6,4660.1,3.49891522]
[1755100879099,0.1072,4660.3,4660.1,3.303]
[1755100879417,0.1072,4660.3,4660.2,0.19589889]
[1755100879620,0.1072,4660.3,4660.2,5.33989889]
[1755100879995,0.1072,4660.3,4660.2,8.64289889]
[1755100880802,0.1072,4660.3,4660.2,8.447]
[1755100881006,0.1072,4660.3,4660.2,8.64320071]
[1755100881599,0.1072,4660.3,4660.2,5.34020071]
[1755100881844,0.1072,4660.3,4660.2,8.64320071]
[1755100882352,0.1072,4660.3,4660.2,5.34020071]
[1755100882759,0.1072,4660.3,4660.2,8.64320071]
[1755100883429,0.1072,4660.3,4660.2,10.54050071]
[1755100885044,0.002,4660.6,4660.2,10.3443]
[1755100885244,0.1072,4660.5,4660.3,0.19635112]
[1755100885449,0.1072,4660.5,4660.4,3.49935112]
[1755100885847,0.1072,4660.5,4660.4,3.49945189]
[1755100887716,0.1072,4660.5,4660.4,0.19645189]
[1755100887916,0.1072,4660.5,4660.4,3.49945189]
[1755100888540,0.1072,4660.5,4660.4,0.19645189]
[1755100888741,0.1072,4660.5,4660.4,3.49945189]
[1755100888952,0.5735,4660.5,4660.4,3.49945189]
[1755100889964,0.1072,4660.5,4660.4,3.49945189]
[1755100892646,0.5615,4660.5,4660.4,0.19645189]
[1755100892870,1.5815,4660.5,4660.4,3.302]
[1755100893568,0.5615,4660.5,4660.4,3.302]
[1755100894173,1.5815,4660.5,4660.4,3.302]
[1755100895675,3.55,4660.4,4659.7,0.001]
[1755100895981,0.1072,4659.8,4659.7,0.001]
[1755100896142,0.1072,4659.8,4659.7,3.303]
[1755100896847,0.1072,4659.8,4659.7,0.001]
[1755100896848,0.5615,4659.8,4659.7,0.001]
[1755100897054,1.5815,4659.8,4659.7,3.303]
[1755100897370,7.27751485,4659.8,4659.7,3.303]
[1755100897586,7.73922656,4659.8,4659.7,3.303]
[1755100897959,5.59321171,4659.8,4659.7,3.303]
[1755100898374,4.57321171,4659.8,4659.7,3.303]
[1755100898569,5.80321485,4659.8,4659.7,3.303]
[1755100898884,7.73922656,4659.8,4659.1,5.144]
[1755100899090,0.91601171,4659.7,4659.2,3.302]
[1755100899287,0.1072,4659.3,4659.1,5.144]
[1755100899961,0.1072,4659.3,4659.2,3.303]
[1755100900786,0.5615,4659.3,4659.2,3.303]
[1755100900998,0.1072,4659.3,4659.2,3.303]
[1755100901378,0.1072,4659.3,4659.1,5.144]
[1755100901573,0.1072,4659.3,4659.2,3.302]
[1755100902015,0.1072,4659.3,4659.2,4.7412]
[1755100902311,0.1072,4659.3,4659.2,5.1775]
[1755100902796,0.1072,4659.3,4659.2,4.7412]
[1755100903114,0.1072,4659.3,4659.2,5.1775]
[1755100903579,0.1072,4659.3,4659.2,3.303]
[1755100903778,0.1072,4659.3,4659.1,5.144]
[1755100904199,0.1072,4659.3,4659.2,3.303]
[1755100904514,0.1072,4659.3,4659.2,5.1785]
[1755100904811,0.1072,4659.3,4659.2,3.303]
[1755100905014,0.1072,4659.3,4659.1,5.144]
[1755100905307,0.1072,4659.3,4659.2,3.303]
[1755100907815,0.1072,4659.3,4659.2,5.1785]
[1755100910313,0.1072,4659.3,4659.1,5.144]
[1755100910499,0.1072,4659.3,4659.2,3.302]
[1755100912111,0.1072,4659.3,4659.2,1.8755]
[1755100912443,0.1072,4659.3,4659.2,5.1775]
[1755100913314,0.1072,4659.3,4659.2,4.7412]
[1755100914217,0.1072,4659.3,4659.2,3.302]
[1755100914419,0.1072,4659.3,4659.2,5.1775]
[1755100914639,0.1072,4659.3,4659.2,5.37416282]
[1755100915509,0.1072,4659.3,4659.2,3.49866282]
[1755100915742,0.1072,4659.3,4659.2,4.93786282]
[1755100916026,0.1072,4659.3,4659.2,5.37416282]
[1755100916813,0.1072,4659.3,4659.2,4.93786282]
[1755100917761,0.1072,4659.3,4659.2,5.37416282]
[1755100917913,0.1072,4659.3,4659.2,2.07216282]
[1755100918113,0.1072,4659.3,4659.2,5.37416282]
[1755100918513,0.1072,4659.4,4659.2,5.37416282]
[1755100918808,0.16125754,4660.5,4659.3,2.07216282]
[1755100919010,0.1072,4659.6,4659.4,3.49866282]
[1755100919210,0.1072,4659.6,4659.5,2.07216282]
[1755100919437,0.1072,4659.6,4659.5,3.49866282]
[1755100920440,0.1072,4659.6,4659.5,3.302]
[1755100920630,0.1072,4659.6,4659.5,3.49911247]
[1755100921143,0.1072,4659.6,4659.5,0.19711247]
[1755100921342,0.1072,4659.6,4659.5,3.49911247]
[1755100921638,0.1072,4659.6,4659.5,3.49923532]
[1755100923047,0.1072,4659.6,4659.5,3.49938033]
[1755100925068,0.1072,4659.6,4659.5,0.19738033]
[1755100925273,0.1072,4659.6,4659.5,3.49838033]
[1755100925574,0.1072,4659.6,4659.5,0.19738033]
[1755100925873,0.1072,4659.6,4659.5,3.49838033]
[1755100926573,0.1072,4659.6,4659.5,0.19738033]
[1755100927171,0.1072,4659.6,4659.5,3.49838033]
[1755100927352,0.1072,4659.6,4659.5,0.19738033]
[1755100927556,0.1072,4659.6,4659.5,3.49838033]
[1755100927741,0.55,4659.5,4659.0,0.001]
[1755100928073,0.57713964,4659.1,4658.9,40.0]
[1755100928379,3.437,4659.0,4658.9,40.0]
[1755100928586,4.86877793,4659.0,4658.9,23.57408191]
[1755100928786,8.71358693,4659.0,4658.9,23.57408191]
[1755100929070,7.56429505,4659.0,4658.9,26.87508191]
[1755100929282,7.56429505,4659.0,4658.9,18.72666252]
[1755100929445,4.44871171,4659.0,4658.9,18.72666252]
[1755100929629,6.13338334,4659.0,4658.9,18.72666252]
[1755100929829,7.2886604,4659.0,4658.9,18.72666252]
[1755100930067,7.75037211,4659.0,4658.9,18.72666252]
[1755100930244,6.59509505,4659.0,4658.9,18.72666252]
[1755100930448,6.92819976,4659.0,4658.9,18.72666252]
[1755100930648,5.21881642,4659.0,4658.9,18.72666252]
[1755100930967,4.78181642,4659.0,4658.9,18.72666252]
[1755100931165,3.55,4659.0,4658.9,18.72666252]
[1755100931739,4.01171171,4659.0,4658.9,18.72666252]
[1755100931958,3.55,4659.0,4658.9,18.72666252]
[1755100932160,3.987,4659.0,4658.9,1.69627128]
[1755100932360,7.10258334,4659.0,4658.9,4.99727128]
[1755100932562,7.56429505,4659.0,4658.9,4.99727128]
[1755100933273,4.33823135,4659.0,4658.9,4.99727128]
[1755100933583,3.1072,4659.0,4658.9,6.80707128]
[1755100933739,3.1072,4659.0,4658.9,6.37917128]
[1755100933938,3.1072,4659.0,4658.9,4.99727128]
[1755100934775,0.1072,4659.0,4658.9,6.80707128]
[1755100937837,0.1072,4659.2,4658.9,6.80707128]
[1755100938040,0.1072,4659.2,4659.0,1.8098]
[1755100938278,0.1072,4659.2,4659.1,3.301]
[1755100938456,0.1072,4659.2,4659.1,5.1108]
[1755100938779,0.1072,4659.2,4659.1,1.8098]
[1755100938978,0.1072,4659.2,4659.1,3.301]
[1755100939572,0.1072,4659.2,4659.1,3.7289]
[1755100939775,0.1072,4659.2,4659.1,5.1108]
[1755100945882,0.1072,4659.2,4658.9,6.84327128]
[1755100946187,0.1072,4659.2,4659.1,1.3819]
[1755100946850,0.1072,4659.2,4659.1,1.8098]
[1755100951707,0.1072,4659.2,4659.0,3.3]
[1755100951882,0.1072,4659.2,4658.9,6.84327128]
[1755100952368,0.1072,4659.2,4659.0,3.3]
[1755100952558,0.1072,4659.2,4658.9,6.84327128]
[1755100952759,0.1072,4659.2,4659.0,3.3]
[1755100953900,0.1072,4659.2,4659.1,1.9327]